fUSD/lending_fUSD_20250220
["ID","MTS","AMOUNT","RATE_DAILY","PERIOD"]
[353793472,1740053449550,-500.0,0.00010958,2]
[353793473,1740053449559,-500.0,0.00010958,2]
[353793474,1740053449568,-500.0,0.00010958,2]
[353793475,1740053449578,-500.0,0.00010958,2]
[353793476,1740053449587,-500.0,0.00010958,2]
[353793477,1740053449597,-500.0,0.00010958,2]
[353793478,1740053449606,-500.0,0.00010958,2]
[353793479,1740053449615,-500.0,0.00010958,2]
[353793480,1740053449624,-500.0,0.00010958,2]
[353793481,1740053449634,-500.0,0.00010958,2]
[353793482,1740053449643,-500.0,0.00010958,2]
[353793483,1740053449652,-500.0,0.00010958,2]
[353793484,1740053449662,-500.0,0.00010958,2]
[353793485,1740053449671,-500.0,0.00010958,2]
[353793486,1740053449680,-500.0,0.00010958,2]
[353793487,1740053449689,-500.0,0.00010958,2]
[353793488,1740053449698,-500.0,0.00010958,2]
[353793489,1740053449707,-500.0,0.00010958,2]
[353793490,1740053449716,-500.0,0.00010958,2]
[353793491,1740053449725,-500.0,0.00010958,2]
[353793492,1740053449735,-500.0,0.00010958,2]
[353793493,1740053449744,-500.0,0.00010958,2]
[353793494,1740053449755,-500.0,0.00010958,2]
[353793495,1740053449765,-500.0,0.00010958,2]
[353793496,1740053449775,-541.79958616,0.00010958,2]
[353793497,1740053449785,-512.20667591,0.00010958,2]
[353793498,1740053449794,-500.0,0.00010958,2]
[353793499,1740053449803,-500.0,0.00010958,2]
[353793500,1740053449812,-500.0,0.00010958,2]
[353793501,1740053449821,-500.0,0.00010958,2]
[353793502,1740053449831,-500.0,0.00010958,2]
[353793503,1740053449841,-500.0,0.00010958,2]
[353793504,1740053449850,-515.42604997,0.00010958,2]
[353793505,1740053449859,-500.0,0.00010958,2]
[353793506,1740053449869,-454.38340672,0.00010958,2]
[353793507,1740053449878,-500.0,0.00010958,2]
[353793508,1740053449888,-500.0,0.00010958,2]
[353793509,1740053449898,-500.0,0.00010958,2]
[353793510,1740053449908,-500.0,0.00010958,2]
[353793511,1740053449917,-500.0,0.00010958,2]
[353793512,1740053449926,-500.0,0.00010958,2]
[353793513,1740053449935,-500.0,0.00010958,2]
[353793514,1740053449944,-500.0,0.00010958,2]
[353793515,1740053449953,-500.0,0.00010958,2]
[353793516,1740053450124,-500.0,0.00010958,2]
[353793517,1740053450134,-500.0,0.00010958,2]
[353793518,1740053450144,-500.0,0.00010958,2]
[353793519,1740053450153,-500.0,0.00010958,2]
[353793520,1740053450163,-500.0,0.00010958,2]
[353793521,1740053450173,-500.0,0.00010958,2]
[353793522,1740053450182,-500.0,0.00010958,2]
[353793523,1740053450191,-500.0,0.00010958,2]
[353793524,1740053450201,-500.0,0.00010958,2]
[353793525,1740053450210,-500.0,0.00010958,2]
[353793526,1740053450219,-500.0,0.00010958,2]
[353793527,1740053450229,-500.0,0.00010958,2]
[353793528,1740053450239,-500.0,0.00010958,2]
[353793529,1740053450248,-500.0,0.00010958,2]
[353793530,1740053450258,-500.0,0.00010958,2]
[353793531,1740053450267,-500.0,0.00010958,2]
[353793532,1740053450277,-500.0,0.00010958,2]
[353793533,1740053450286,-500.0,0.00010958,2]
[353793534,1740053450295,-500.0,0.00010958,2]
[353793535,1740053450303,-500.0,0.00010958,2]
[353793536,1740053450312,-586.53,0.00010958,2]
[353793537,1740053450321,-500.0,0.00010958,2]
[353793538,1740053450331,-500.0,0.00010958,2]
[353793539,1740053450339,-500.0,0.00010958,2]
[353793540,1740053450348,-500.0,0.00010958,2]
[353793541,1740053450357,-500.0,0.00010958,2]
[353793542,1740053450367,-511.09666124,0.00010958,2]
[353793543,1740053450376,-500.0,0.00010958,2]
[353793544,1740053450387,-500.0,0.00010958,2]
[353793545,1740053450397,-500.0,0.00010958,2]
[353793546,1740053450406,-500.0,0.00010958,2]
[353793547,1740053450415,-500.0,0.00010958,2]
[353793548,1740053450424,-500.0,0.00010958,2]
[353793549,1740053450433,-500.0,0.00010958,2]
[353793550,1740053450443,-500.0,0.00010958,2]
[353793551,1740053450452,-500.0,0.00010958,2]
[353793552,1740053450461,-500.0,0.00010958,2]
[353793553,1740053450470,-500.0,0.00010958,2]
[353793554,1740053450480,-334.182654,0.00010958,2]
[353793555,1740053450489,-500.0,0.00010958,2]
[353793556,1740053450498,-764.5,0.00010958,2]
[353793557,1740053450507,-500.0,0.00010958,2]
[353793558,1740053450516,-500.0,0.00010958,2]
[353793559,1740053450526,-500.0,0.00010958,2]
[353793560,1740053450536,-1000.0,0.00010958,2]
[353793561,1740053450545,-500.0,0.00010958,2]
[353793562,1740053450554,-500.0,0.00010958,2]
[353793563,1740053450563,-449.839781,0.00010958,2]
[353793564,1740053450572,-500.0,0.00010958,2]
[353793565,1740053450581,-500.0,0.00010958,2]
[353793566,1740053450591,-500.0,0.00010958,2]
[353793567,1740053450599,-500.0,0.00010958,2]
[353793568,1740053450608,-500.0,0.00010958,2]
[353793569,1740053450617,-738.68,0.00010958,2]
[353793570,1740053450626,-500.0,0.00010958,2]
[353793571,1740053450635,-301.64369203,0.00010958,2]
[353793572,1740053450644,-500.0,0.00010958,2]
[353793573,1740053450654,-505.02629502,0.00010958,2]
[353793574,1740053450664,-500.0,0.00010958,2]
[353793575,1740053450673,-500.0,0.00010958,2]
[353793576,1740053450682,-158.31974,0.00010958,2]
[353793577,1740053450691,-500.0,0.00010958,2]
[353793578,1740053450700,-500.0,0.00010958,2]
[353793579,1740053450709,-500.0,0.00010958,2]
[353793580,1740053450718,-500.0,0.00010958,2]
[353793581,1740053450726,-500.0,0.00010958,2]
[353793582,1740053450735,-500.0,0.00010958,2]
[353793583,1740053450744,-500.0,0.00010958,2]
[353793584,1740053450753,-500.0,0.00010958,2]
[353793585,1740053450763,-562.04,0.00010958,2]
[353793586,1740053450772,-500.0,0.00010958,2]
[353793587,1740053450781,-500.0,0.00010958,2]
[353793588,1740053450790,-633.74,0.00010958,2]
[353793589,1740053450799,-500.0,0.00010958,2]
[353793590,1740053450808,-500.0,0.00010958,2]
[353793591,1740053450818,-500.0,0.00010958,2]
[353793592,1740053450827,-500.0,0.00010958,2]
[353793593,1740053450836,-500.0,0.00010958,2]
[353793594,1740053450846,-500.0,0.00010958,2]
[353793595,1740053450856,-500.0,0.00010958,2]
[353793596,1740053450865,-500.0,0.00010958,2]
[353793597,1740053450874,-500.0,0.00010958,2]
[353793598,1740053450882,-500.0,0.00010958,2]
[353793599,1740053450892,-500.0,0.00010958,2]
[353793600,1740053450900,-500.0,0.00010958,2]
[353793601,1740053450908,-500.0,0.00010958,2]
[353793602,1740053450918,-500.0,0.00010958,2]
[353793603,1740053450927,-500.0,0.00010958,2]
[353793604,1740053450936,-500.0,0.00010958,2]
[353793605,1740053450945,-500.0,0.00010958,2]
[353793606,1740053450955,-629.17,0.00010958,2]
[353793607,1740053450964,-500.0,0.00010958,2]
[353793608,1740053450974,-500.0,0.00010958,2]
[353793609,1740053450987,-500.0,0.00010958,2]
[353793610,1740053450997,-500.0,0.00010958,2]
[353793611,1740053451006,-500.0,0.00010958,2]
[353793612,1740053451015,-500.0,0.00010958,2]
[353793613,1740053451026,-500.0,0.00010958,2]
[353793614,1740053451036,-500.0,0.00010958,2]
[353793615,1740053451045,-500.0,0.00010958,2]
[353793616,1740053451055,-500.0,0.00010958,2]
[353793617,1740053451065,-500.0,0.00010958,2]
[353793618,1740053451075,-500.0,0.00010958,2]
[353793619,1740053451084,-500.0,0.00010958,2]
[353793620,1740053451093,-500.0,0.00010958,2]
[353793621,1740053451101,-500.0,0.00010958,2]
[353793622,1740053451110,-500.0,0.00010958,2]
[353793623,1740053451119,-500.0,0.00010958,2]
[353793624,1740053451128,-500.0,0.00010958,2]
[353793625,1740053451138,-500.0,0.00010958,2]
[353793626,1740053451147,-500.0,0.00010958,2]
[353793627,1740053451157,-500.0,0.00010958,2]
[353793628,1740053451165,-500.0,0.00010958,2]
[353793629,1740053451175,-500.0,0.00010958,2]
[353793630,1740053451183,-656.95,0.00010958,2]
[353793631,1740053451194,-500.0,0.00010958,2]
[353793632,1740053451203,-500.0,0.00010958,2]
[353793633,1740053451212,-500.0,0.00010958,2]
[353793634,1740053451221,-500.0,0.00010958,2]
[353793635,1740053451231,-500.0,0.00010958,2]
[353793636,1740053451240,-815.54,0.00010958,2]
[353793637,1740053451249,-500.0,0.00010958,2]
[353793638,1740053451258,-500.0,0.00010958,2]
[353793639,1740053451267,-532.54,0.00010958,2]
[353793640,1740053451276,-500.0,0.00010958,2]
[353793641,1740053451285,-500.0,0.00010958,2]
[353793642,1740053451295,-500.0,0.00010958,2]
[353793643,1740053451304,-500.0,0.00010958,2]
[353793644,1740053451313,-500.0,0.00010958,2]
[353793645,1740053451322,-500.0,0.00010958,2]
[353793646,1740053451331,-500.0,0.00010958,2]
[353793647,1740053451340,-500.0,0.00010958,2]
[353793648,1740053451349,-500.0,0.00010958,2]
[353793649,1740053451359,-500.0,0.00010958,2]
[353793650,1740053451368,-500.0,0.00010958,2]
[353793651,1740053451377,-1042.19,0.00010958,2]
[353793652,1740053451387,-500.0,0.00010958,2]
[353793653,1740053451396,-500.0,0.00010958,2]
[353793654,1740053451404,-500.0,0.00010958,2]
[353793655,1740053451414,-500.0,0.00010958,2]
[353793656,1740053451422,-500.0,0.00010958,2]
[353793657,1740053451432,-500.0,0.00010958,2]
[353793658,1740053451441,-500.0,0.00010958,2]
[353793659,1740053451450,-500.0,0.00010958,2]
[353793660,1740053451459,-675.93,0.00010958,2]
[353793661,1740053451468,-500.0,0.00010958,2]
[353793662,1740053451477,-500.0,0.00010958,2]
[353793663,1740053451487,-500.0,0.00010958,2]
[353793664,1740053451496,-1269.18,0.00010958,2]
[353793665,1740053451504,-1058.7,0.00010958,2]
[353793666,1740053451514,-500.0,0.00010958,2]
[353793667,1740053451524,-500.0,0.00010958,2]
[353793668,1740053451534,-2046.98,0.00010958,2]
[353793669,1740053451543,-500.0,0.00010958,2]
[353793670,1740053451552,-676.14,0.00010958,2]
[353793671,1740053451561,-500.0,0.00010958,2]
[353793672,1740053451570,-500.0,0.00010958,2]
[353793673,1740053451579,-500.0,0.00010958,2]
[353793674,1740053451591,-500.0,0.00010958,2]
[353793675,1740053451602,-500.0,0.00010958,2]
[353793676,1740053451611,-500.0,0.00010958,2]
[353793677,1740053451622,-500.0,0.00010958,2]
[353793678,1740053451632,-500.0,0.00010958,2]
[353793679,1740053451641,-500.0,0.00010958,2]
[353793680,1740053451651,-500.0,0.00010958,2]
[353793681,1740053451660,-500.0,0.00010958,2]
[353793682,1740053451670,-151.0,0.00010958,2]
[353793683,1740053451679,-500.0,0.00010958,2]
[353793684,1740053451688,-151.0,0.00010958,2]
[353793685,1740053451697,-1425.66,0.00010958,2]
[353793686,1740053451707,-500.0,0.00010958,2]
[353793687,1740053451716,-500.0,0.00010958,2]
[353793688,1740053451726,-151.0,0.00010958,2]
[353793689,1740053451737,-151.0,0.00010958,2]
[353793690,1740053451746,-151.0,0.00010958,2]
[353793691,1740053451756,-500.0,0.00010958,2]
[353793692,1740053451765,-151.0,0.00010958,2]
[353793693,1740053451775,-500.0,0.00010958,2]
[353793694,1740053451784,-151.0,0.00010958,2]
[353793695,1740053451793,-151.0,0.00010958,2]
[353793696,1740053451802,-151.0,0.00010958,2]
[353793697,1740053451811,-500.0,0.00010958,2]
[353793698,1740053451820,-151.0,0.00010958,2]
[353793699,1740053451829,-500.0,0.00010958,2]
[353793700,1740053451839,-500.0,0.00010958,2]
[353793701,1740053451848,-151.0,0.00010958,2]
[353793702,1740053451857,-151.0,0.00010958,2]
[353793703,1740053451867,-500.0,0.00010958,2]
[353793704,1740053451876,-151.0,0.00010958,2]
[353793705,1740053451886,-151.0,0.00010958,2]
[353793706,1740053451895,-500.0,0.00010958,2]
[353793707,1740053451904,-151.0,0.00010958,2]
[353793708,1740053451913,-151.0,0.00010958,2]
[353793709,1740053451922,-500.0,0.00010958,2]
[353793710,1740053451931,-500.0,0.00010958,2]
[353793711,1740053451940,-151.0,0.00010958,2]
[353793712,1740053451949,-151.0,0.00010958,2]
[353793713,1740053451958,-151.0,0.00010958,2]
[353793714,1740053451967,-500.0,0.00010958,2]
[353793715,1740053451976,-151.0,0.00010958,2]
[353793716,1740053451988,-500.0,0.00010958,2]
[353793717,1740053451998,-151.0,0.00010958,2]
[353793718,1740053452007,-151.0,0.00010958,2]
[353793719,1740053452016,-500.0,0.00010958,2]
[353793720,1740053452026,-151.0,0.00010958,2]
[353793721,1740053452035,-151.0,0.00010958,2]
[353793722,1740053452044,-151.0,0.00010958,2]
[353793723,1740053452053,-151.0,0.00010958,2]
[353793724,1740053452065,-500.0,0.00010958,2]
[353793725,1740053452075,-151.0,0.00010958,2]
[353793726,1740053452084,-500.0,0.00010958,2]
[353793727,1740053452093,-151.0,0.00010958,2]
[353793728,1740053452103,-151.0,0.00010958,2]
[353793729,1740053452112,-500.0,0.00010958,2]
[353793730,1740053452121,-151.0,0.00010958,2]
[353793731,1740053452131,-500.0,0.00010958,2]
[353793732,1740053452140,-151.0,0.00010958,2]
[353793733,1740053452149,-151.0,0.00010958,2]
[353793734,1740053452159,-500.0,0.00010958,2]
[353793735,1740053452168,-151.0,0.00010958,2]
[353793736,1740053452177,-151.0,0.00010958,2]
[353793737,1740053452187,-248.51264491,0.00010958,2]
[353793738,1740053452196,-500.0,0.00010958,2]
[353793739,1740053452206,-697.51,0.00010958,2]
[353793740,1740053452215,-500.0,0.00010958,2]
[353793741,1740053452224,-500.0,0.00010958,2]
[353793742,1740053452233,-500.0,0.00010958,2]
[353793743,1740053452242,-500.0,0.00010958,2]
[353793744,1740053452251,-500.0,0.00010958,2]
[353793745,1740053452261,-500.0,0.00010958,2]
[353793746,1740053452270,-500.0,0.00010958,2]
[353793747,1740053452279,-500.0,0.00010958,2]
[353793748,1740053452288,-500.0,0.00010958,2]
[353793749,1740053452297,-503.4895864,0.00010958,2]
[353793750,1740053452306,-500.0,0.00010958,2]
[353793751,1740053452315,-500.0,0.00010958,2]
[353793752,1740053452323,-500.0,0.00010958,2]
[353793753,1740053452331,-500.0,0.00010958,2]
[353793754,1740053452338,-500.0,0.00010958,2]
[353793755,1740053452347,-500.0,0.00010958,2]
[353793756,1740053452355,-746.21,0.00010958,2]
[353793757,1740053452364,-500.0,0.00010958,2]
[353793758,1740053452373,-1048.27,0.00010958,2]
[353793759,1740053452381,-500.0,0.00010958,2]
[353793760,1740053452391,-500.0,0.00010958,2]
[353793761,1740053452400,-500.0,0.00010958,2]
[353793762,1740053452409,-500.0,0.00010958,2]
[353793763,1740053452419,-500.0,0.00010958,2]
[353793764,1740053452428,-500.0,0.00010958,2]
[353793765,1740053452437,-500.0,0.00010958,2]
[353793766,1740053452447,-500.0,0.00010958,2]
[353793767,1740053452456,-639.48,0.00010958,2]
[353793768,1740053452465,-500.0,0.00010958,2]
[353793769,1740053452475,-500.0,0.00010958,2]
[353793770,1740053452484,-500.0,0.00010958,2]
[353793771,1740053452493,-500.0,0.00010958,2]
[353793772,1740053452502,-500.0,0.00010958,2]
[353793773,1740053452511,-500.0,0.00010958,2]
[353793774,1740053452521,-500.0,0.00010958,2]
[353793775,1740053452530,-500.0,0.00010958,2]
[353793776,1740053452539,-500.0,0.00010958,2]
[353793777,1740053452549,-493.92936215,0.00010958,2]
[353793778,1740053452559,-500.0,0.00010958,2]
[353793779,1740053452569,-500.0,0.00010958,2]
[353793780,1740053452578,-500.0,0.00010958,2]
[353793781,1740053452587,-500.0,0.00010958,2]
[353793782,1740053452596,-500.0,0.00010958,2]
[353793783,1740053452605,-500.0,0.00010958,2]
[353793784,1740053452614,-686.94,0.00010958,2]
[353793785,1740053452622,-500.0,0.00010958,2]
[353793786,1740053452631,-507.06,0.00010958,2]
[353793787,1740053452640,-500.0,0.00010958,2]
[353793788,1740053452649,-500.0,0.00010958,2]
[353793789,1740053452658,-500.0,0.00010958,2]
[353793790,1740053452791,-500.0,0.00010958,2]
[353793791,1740053452801,-500.0,0.00010958,2]
[353793792,1740053452810,-500.0,0.00010958,2]
[353793793,1740053452819,-500.0,0.00010958,2]
[353793794,1740053452828,-500.0,0.00010958,2]
[353793795,1740053452837,-500.0,0.00010958,2]
[353793796,1740053452846,-500.0,0.00010958,2]
[353793797,1740053452855,-500.0,0.00010958,2]
[353793798,1740053452865,-500.0,0.00010958,2]
[353793799,1740053452874,-500.0,0.00010958,2]
[353793800,1740053452884,-500.0,0.00010958,2]
[353793801,1740053452894,-500.0,0.00010958,2]
[353793802,1740053452903,-500.0,0.00010958,2]
[353793803,1740053452912,-302.38194022,0.00010958,2]
[353793804,1740053452921,-500.0,0.00010958,2]
[353793805,1740053452930,-516.16,0.00010958,2]
[353793806,1740053452939,-500.0,0.00010958,2]
[353793807,1740053452949,-516.16,0.00010958,2]
[353793808,1740053452958,-516.16,0.00010958,2]
[353793809,1740053452967,-516.16,0.00010958,2]
[353793810,1740053452975,-516.16,0.00010958,2]
[353793811,1740053452989,-500.0,0.00010958,2]
[353793812,1740053452999,-516.16,0.00010958,2]
[353793813,1740053453008,-516.16,0.00010958,2]
[353793814,1740053453017,-516.16,0.00010958,2]
[353793815,1740053453027,-500.0,0.00010958,2]
[353793816,1740053453036,-156.374568,0.00010958,2]
[353793817,1740053453045,-516.16,0.00010958,2]
[353793818,1740053453056,-516.16,0.00010958,2]
[353793819,1740053453066,-517.95,0.00010958,2]
[353793820,1740053453074,-500.0,0.00010958,2]
[353793821,1740053453084,-500.0,0.00010958,2]
[353793822,1740053453093,-500.0,0.00010958,2]
[353793823,1740053453102,-500.0,0.00010958,2]
[353793824,1740053453111,-500.0,0.00010958,2]
[353793825,1740053453120,-500.0,0.00010958,2]
[353793826,1740053453129,-500.0,0.00010958,2]
[353793827,1740053453139,-500.0,0.00010958,2]
[353793828,1740053453150,-500.0,0.00010958,2]
[353793829,1740053453160,-500.0,0.00010958,2]
[353793830,1740053453169,-500.0,0.00010958,2]
[353793831,1740053453178,-500.0,0.00010958,2]
[353793832,1740053453187,-500.0,0.00010958,2]
[353793833,1740053453195,-500.0,0.00010958,2]
[353793834,1740053453205,-500.0,0.00010958,2]
[353793835,1740053453214,-200.0,0.00011,2]
[353793836,1740053453223,-550.0,0.00011,2]
[353793837,1740053453232,-1000.0,0.00011017,2]
[353793838,1740053453241,-1199.0,0.00011022,2]
[353793839,1740053453249,-21328.58373852,0.0001104,3]
[353793840,1740053453559,-2812.17995057,0.0001104,3]
[353793841,1740053453571,-291.6,0.0001104,3]
[353793842,1740053453582,-2949.48873,0.0001104,3]
[353793843,1740053453593,-3143.528934,0.0001104,3]
[353793844,1740053453608,-1655.50765093,0.0001104,3]
[353793845,1740053453658,-492.18,0.0001104,3]
[353793848,1740053882161,274.95,8.767e-05,2]
[353793849,1740053900917,512.6,9e-05,2]
[353793854,1740054320095,318.87668803,9e-05,2]
[353793855,1740054320120,128.30206073,9e-05,2]
[353793856,1740054326861,1077.66,0.00013918,30]
[353793858,1740054544556,616.81,8.219e-05,2]
[353793871,1740054631806,-200.0,9.8e-05,3]
[353793872,1740054631819,-101.21083398,9.899e-05,2]
[353793873,1740054631835,-198.78916602,9.899e-05,2]
[353793874,1740054631847,-150.0,9.899e-05,2]
[353793875,1740054631860,-500.0,9.9e-05,3]
[353793876,1740054631873,-5000.0,9.9e-05,2]
[353793877,1740054631886,-2207.50159971,9.9e-05,2]
[353793878,1740054631900,-7217.7852,9.9e-05,2]
[353793879,1740054631912,-739.6396624,9.9e-05,2]
[353793880,1740054631925,-173.12,9.959e-05,2]
[353793881,1740054631937,-167.79240589,9.973e-05,2]
[353793882,1740054631950,-500.0,9.973e-05,2]
[353793883,1740054631962,-150.8131153,9.973e-05,2]
[353793884,1740054631975,-501.04541411,9.973e-05,2]
[353793885,1740054631986,-209.77689839,9.973e-05,2]
[353793886,1740054631996,-500.0,9.973e-05,2]
[353793887,1740054632005,-362.8787841,9.973e-05,2]
[353793888,1740054632015,-501.10989432,9.973e-05,2]
[353793889,1740054632025,-156.9789232,9.973e-05,2]
[353793890,1740054632035,-156.10292359,9.973e-05,2]
[353793901,1740054632304,-159.33799985,9.999e-05,2]
[353793904,1740054632317,-569.04361562,9.999e-05,2]
[353793907,1740054632327,-500.0,9.999e-05,2]
[353793910,1740054632336,-500.0,9.999e-05,2]
[353793913,1740054632348,-500.0,9.999e-05,2]
[353793916,1740054632358,-303.35209161,9.999e-05,2]
[353793919,1740054632368,-169813.27139246,0.0001,2]
[353793927,1740054632413,-297.04785907,0.0001,2]
[353793931,1740054632426,-425.44529583,0.0001,2]
[353793934,1740054632438,-61979.69660119,0.0001,2]
[353793937,1740054632449,-500.0,0.0001,2]
[353793940,1740054632461,-500.0,0.0001,2]
[353793945,1740054632473,-1434.30223989,0.0001,2]
[353793950,1740054632493,-764727.41252576,0.0001,2]
[353793953,1740054632505,-9155.98326393,0.0001,2]
[353793958,1740054632524,-398.05286501,0.0001,2]
[353793960,1740054632536,-482.10129402,0.0001,2]
[353793964,1740054632559,-10852.23557576,0.0001,2]
[353793967,1740054632570,-3499.37093081,0.0001,2]
[353793971,1740054632582,-4458.09753364,0.0001,2]
[353793974,1740054632594,-1517.7796849,0.0001,2]
[353793978,1740054632606,-7702.89572752,0.0001,2]
[353794493,1740054637721,-1095.435283,0.0001,2]
[353794500,1740054637778,-490.0000224,0.0001,2]
[353794502,1740054637790,-23999.32410261,0.0001,2]
[353794504,1740054637802,-1248.82727493,0.0001,2]
[353794509,1740054637837,-7256.32958355,0.0001,2]
[353794511,1740054637849,-1202.55802759,0.0001,2]
[353794513,1740054637860,-3456.95682332,0.0001,2]
[353794516,1740054637871,-1053.13715554,0.0001,2]
[353794520,1740054637904,-1498.6660851,0.0001,2]
[353794522,1740054637915,-511.64502855,0.0001,2]
[353794524,1740054637926,-13980.23118418,0.0001,2]
[353794527,1740054637937,-3903.04,0.0001,2]
[353794529,1740054637948,-8595.71340036,0.0001,2]
[353794532,1740054637972,-2076.34305428,0.0001,2]
[353794535,1740054637983,-740.34726879,0.0001,2]
[353794731,1740054639877,-285.12435591,0.0001,2]
[353794733,1740054639890,-713.63952965,0.0001,2]
[353794735,1740054639902,-711.58483449,0.0001,2]
[353794740,1740054639940,-7153.73604969,0.0001,2]
[353794742,1740054639952,-4586.97262945,0.0001,2]
[353794745,1740054639966,-9953.84001737,0.0001,2]
[353794749,1740054639996,-270.54,0.0001,2]
[353794761,1740054640108,-202234.1094848,0.0001,2]
[353794774,1740054640219,-902.18031963,0.0001,2]
[353794776,1740054640232,-1092.27862809,0.0001,2]
[353794778,1740054640244,-368349.21965535,0.0001,2]
[353794780,1740054640256,-95847.55232123,0.0001,2]
[353794785,1740054640289,-1855.07624526,0.0001,2]
[353794787,1740054640301,-5898.221883,0.0001,2]
[353794789,1740054640312,-414.54,0.0001,2]
[353794793,1740054640342,-10814.16810808,0.0001,2]
[353794795,1740054640353,-449.44567883,0.0001,2]
[353794801,1740054640392,-2742.93179206,0.0001,2]
[353794803,1740054640407,-801.53436685,0.0001,2]
[353794805,1740054640419,-19886.67596401,0.0001,2]
[353794807,1740054640431,-576.99,0.0001,2]
[353794809,1740054640442,-961.96729101,0.0001,2]
[353794812,1740054640455,-20037.3365307,0.0001,2]
[353794814,1740054640466,-194564.43077815,0.0001,2]
[353794816,1740054640476,-700.0,0.0001,3]
[353794818,1740054640486,-477.56247169,0.0001,2]
[353794820,1740054640496,-82702.14817973,0.0001,2]
[353795035,1740054642823,-1226.23160509,0.0001,2]
[353795040,1740054642836,-1815.61756626,0.0001,2]
[353795054,1740054642902,-1316.96072922,0.0001,2]
[353795057,1740054642913,-347.17271533,0.0001,2]
[353795061,1740054642925,-1823345.82889817,0.0001,2]
[353795064,1740054642934,-587.39028891,0.0001,2]
[353795066,1740054642944,-210.54930696,0.0001,2]
[353795068,1740054642953,-325.28335272,0.0001,2]
[353795069,1740054642963,-259.46053354,0.00010162,2]
[353795070,1740054642972,-158.815969,0.0001017,3]
[353795071,1740054642982,-503.33,0.0001025,2]
[353795072,1740054642991,-494.28,0.00010352,2]
[353795073,1740054643001,-209.4817465,0.000104,2]
[353795074,1740054643010,-209.48174637,0.000104,2]
[353795075,1740054643020,-616.81,0.00010463,2]
[353795076,1740054643030,-501.98,0.00010487,2]
[353795077,1740054643039,-209.48174637,0.00010521,2]
[353795079,1740054643049,-150.68,0.00010629,2]
[353795081,1740054643059,-493.09,0.00010629,2]
[353795098,1740054643293,-502.97,0.0001068,2]
[353795099,1740054643315,-1000.0,0.000107,3]
[353795100,1740054643325,-501.11,0.0001073,2]
[353795101,1740054643335,-1200.0,0.000108,3]
[353795102,1740054643344,-492.91,0.0001083,2]
[353795103,1740054643354,-209.48174637,0.00010831,2]
[353795104,1740054643363,-420.0,0.00010889,2]
[353795105,1740054643372,-255.0,0.00010889,2]
[353795106,1740054643381,-200.0,0.000109,3]
[353795107,1740054643390,-1580.70268,0.0001091,2]
[353795108,1740054643405,-430.203,0.0001094,2]
[353795109,1740054643415,-336.13677535,0.0001094,2]
[353795110,1740054643424,-500.0,0.00010955,2]
[353795111,1740054643434,-500.0,0.00010955,2]
[353795112,1740054643443,-1908.36619097,0.00010957,3]
[353795113,1740054643453,-5139.29,0.00010957,2]
[353795114,1740054643462,-195.943,0.00010957,2]